[Event "8th Montevideo Open 2025"]
[Site "Montevideo"]
[Date "2025.02.04"]
[Round "4.6"]
[White "Curi, Gabriel"]
[Black "Komarov, Leonid"]
[Result "0-1"]
[Annotator "RC"]
[ECO "C01"]
[WhiteElo "2115"]
[BlackElo "1956"]
[PlyCount "84"]
[EventDate "2025.02.01"]
[EventType "swiss"]
[EventCountry "URU"]
[SourceTitle "playchess.com"]
[Source "ChessBase"]
[SourceQuality "1"]
[TimeControl "5400+30"]

1. e4 {[%emt 0:00:34]} e6 {[%emt 0:00:06]} 2. d4 {[%emt 0:00:22]} d5 {[%emt 0:00:06]} 3. exd5 {[%emt 0:00:05]} exd5 {[%emt 0:00:02]} 4. Nf3 {[%emt 0:00:07]} Nf6 {[%emt 0:00:03]} 5. Bd3 {[%emt 0:00:12]} c5 {[%emt 0:00:03]} 6. O-O {[%emt 0:01:03]} c4 {[%emt 0:00:03]} 7. Re1+ {[%emt 0:00:08]} Be7 {[%emt 0:00:03]} 8. Bf1 {[%emt 0:00:07]} O-O {[%emt 0:00:04]} 9. b3 {[%emt 0:00:13]} cxb3 {[%emt 0:00:05]} 10. axb3 {[%emt 0:00:05]} Bg4 {[%emt 0:00:37]} 11. h3 {[%emt 0:01:39]} Bh5 {[%emt 0:00:15]} 12. Qd3 {[%emt 0:12:43]} Nc6 {[%emt 0:01:20]} 13. c3 {[%emt 0:02:15]} a6 {[%emt 0:02:30]} 14. Ne5 {[%emt 0:01:56]} Nxe5 {[%emt 0:00:25]} 15. dxe5 {[%emt 0:00:55]} Ne4 {[%emt 0:00:22]} 16. Be3 {[%emt 0:14:17]} Bg6 {[%emt 0:03:39]} 17. Qd1 {[%emt 0:03:36]} Rc8 {[%emt 0:00:21]} 18. Bd4 {[%emt 0:05:18]} Re8 {[%emt 0:05:30]} 19. Bd3 {[%emt 0:54:25]} Nc5 {[%emt 1:24:26]} 20. Bxg6 {[%emt 0:00:00]} hxg6 {[%emt 0:00:00]} 21. Nd2 {[%emt 0:00:00]} Ne6 {[%emt 0:00:00]} 22. Nf3 {[%emt 0:00:00]} Qd7 {[%emt 0:00:00]} 23. Qd3 {[%emt 0:00:00]} Qc6 {[%emt 0:00:00]} 24. Rac1 {[%emt 0:00:00]} b5 {[%emt 0:00:00]} 25. Ra1 {[%emt 0:00:00]} Ra8 {[%emt 0:00:00]} 26. b4 {[%emt 0:00:00]} Rec8 {[%emt 0:00:00]} 27. Ra3 {[%emt 0:00:00]} Qc4 {[%emt 0:00:00]} 28. Qe3 {[%emt 0:00:00]} a5 {[%emt 0:00:00]} 29. Rxa5 {[%emt 0:00:00]} Rxa5 {[%emt 0:00:00]} 30. bxa5 {[%emt 0:00:00]} Qa2 {[%emt 0:00:00]} 31. Bb6 {[%emt 0:00:00]} b4 {[%emt 0:00:00]} 32. cxb4 {[%emt 0:00:00]} Bxb4 {[%emt 0:00:00]} 33. Qe2 {[%emt 0:00:00]} Rc2 {[%emt 0:00:00]} 34. Qb5 {[%emt 0:00:00]} Bxe1 {[%emt 0:00:00]} 35. Qe8+ {[%emt 0:00:00]} Kh7 {[%emt 0:00:00]} 36. Qxf7 {[%emt 0:00:46]} Bxf2+ {[%emt 0:00:00]} 37. Bxf2 {[%emt 0:00:44]} Rxf2 {[%emt 0:00:00]} 38. Ng5+ {[%emt 0:00:12]} Nxg5 {[%emt 0:00:00]} 39. Qxf2 {[%emt 0:00:06]} Qa1+ {[%emt 0:00:00]} 40. Qf1 {[%emt 0:00:26]} Qxa5 {[%emt 0:00:00]} 41. Qf4 {[%emt 0:00:09]} Qe1+ {[%emt 0:00:00]} 42. Kh2 {[%emt 0:00:06]} Ne6 {[%emt 0:00:00]} 0-1

[Event "8th Montevideo Open 2025"]
[Site "Montevideo"]
[Date "2025.02.04"]
[Round "4.7"]
[White "Carbone, Diego"]
[Black "Pichuaga, Juan Pablo"]
[Result "1/2-1/2"]
[Annotator "TA"]
[ECO "A41"]
[WhiteElo "2216"]
[BlackElo "1973"]
[PlyCount "119"]
[EventDate "2025.02.01"]
[EventType "swiss"]
[EventCountry "URU"]
[SourceTitle "playchess.com"]
[Source "ChessBase"]
[SourceQuality "1"]
[TimeControl "5400+30"]

{[%evp 9,119,29,56,60,69,64,64,70,67,57,75,70,75,66,66,77,92,43,41,27,50,44,56,60,54,41,52,27,21,5,6,-58,-53,-144,-141,-158,-162,-133,-132,-216,-219,-301,-279,-293,-294,-291,-284,-311,-150,-141,-145,-164,-156,-268,-196,-213,-224,-220,-217,-224,-180,-181,-184,-227,-236,-245,-253,-223,-177,-191,-98,-98,-68,-79,-25,-25,-20,-20,-20,-286,-181,-168,-58,-58,-58,-56,-57,-56,0,0,0,0,0,0,0,0,0,0,0,0,0,0,0,0,0,0,0,0,0,0,0,0]} 1. d4 {[%emt 0:00:07]} d6 {[%emt 0:01:05]} 2. c4 {[%emt 0:01:03]} Nd7 {[%emt 0:01:40]} 3. Nc3 {[%emt 0:00:39]} g6 {[%emt 0:04:49]} 4. Nf3 {[%emt 0:00:39]} Bg7 {[%emt 0:00:33]} 5. g3 {[%emt 0:00:52]} h6 {[%emt 0:00:26]} 6. Bg2 {[%emt 0:01:53] A41: 1 d4 d6: Tartakower System and Modern Defence.} e5 {[%emt 0:00:45]} 7. e4 {[%emt 0:02:22]} Ne7 {[%emt 0:01:06]} 8. Be3 {[%emt 0:01:52] White is slightly better.} O-O {[%emt 0:05:43]} 9. dxe5 $146 {[%emt 0:11:45]} (9. Qd2 Kh7 10. Rd1 Nc6 11. O-O exd4 12. Nxd4 Nde5 13. b3 Bh3 14. Nxc6 bxc6 15. f4 Bxg2 16. Kxg2 {1-0 Fuderer,A-Puc,S YUG-ch09 Zagreb 1953 (12)}) 9... dxe5 {[%emt 0:08:49]} 10. Qd2 {[%emt 1:14:18][%cal Oe1c1] White has more active pieces.} Nb6 {[%emt 0:05:05]} 11. Bc5 {[%emt 0:00:00] Strongly threatening Qxd8.} (11. Bxh6 $6 Nxc4 (11... Qxd2+ 12. Bxd2 Nxc4 13. Bg5 $11) 12. Qe2 Bxh6 $11) 11... Qxd2+ 12. Nxd2 {[%emt 0:00:00]} Bf6 {[%emt 0:27:35]} 13. Be3 {[%emt 0:00:00]} (13. Nb5 $16) 13... Bg5 $14 {[%emt 0:09:13]} 14. f4 {[%emt 0:00:00]} exf4 {[%emt 0:01:18]} 15. gxf4 {[%emt 0:00:00]} Bh4+ {[%emt 0:00:36]} 16. Ke2 {[%emt 0:00:00]} c6 {[%emt 0:02:35]} 17. c5 {[%emt 0:00:00]} Nd7 {[%emt 0:02:35]} 18. Bh3 {[%emt 0:00:00]} b6 {[%emt 0:04:50]} 19. Nf3 {[%emt 0:00:00]} Bf6 {[%emt 0:01:09]} 20. e5 {[%emt 0:00:00]} (20. Bxd7 $11 Bxd7 21. Rad1) 20... Bg7 $15 {[%emt 0:00:50][%cal Od7e5]} 21. Ne4 {[%emt 0:00:00] [#]} (21. Rad1 $1 $15 Ba6+ (21... Nxc5 22. Bxc5 bxc5 23. Bxc8 $11) 22. Kf2 Nxc5 23. Bxc5 bxc5 24. Ne4) 21... Nxe5 $1 $17 {[%emt 0:02:40][%mdl 512]} 22. Bxc8 {[%emt 0:00:00]} Nxf3 {[%emt 0:00:23]} 23. Kxf3 {[%emt 0:00:00]} Rfxc8 {[%emt 0:00:43]} 24. cxb6 {[%emt 0:00:00]} (24. Rab1 $17) 24... axb6 $19 {[%emt 0:00:15]} (24... Bxb2 $2 25. b7 Bxa1 26. Rxa1 $18 (26. bxa8=N Bg7 $17) (26. bxa8=B Nf5 $18) (26. bxa8=R Rxa8 27. Rxa1 Nd5 $18) (26. bxc8=Q+ Rxc8 27. Rxa1 Nf5 $18) (26. bxa8=Q Rxa8 27. Rxa1 Nf5 $18)) 25. Bxb6 {[%emt 0:00:00]} Nd5 {[%emt 0:01:36]} 26. Bc5 {[%emt 0:00:00]} Bxb2 {[%emt 0:00:14]} 27. Rad1 {[%emt 0:00:00]} Rxa2 {[%emt 0:01:18]} 28. Rd2 {[%emt 0:00:00]} Ra1 {[%emt 0:00:56] Against Rb1} (28... Rb8 $19 29. Rhd1 Rb3+ 30. Rd3 Rxd3+ 31. Rxd3 f5) 29. Rxa1 $17 {[%emt 0:00:00]} Bxa1 {[%emt 0:00:13]} 30. Ra2 {[%emt 0:00:00]} Bg7 {[%emt 0:00:45]} 31. Ra6 {[%emt 0:00:00]} (31. f5 $17 {was worth a try.}) 31... Bf8 {[%emt 0:00:57]} 32. Nd6 {[%emt 0:01:18]} Bxd6 {[%emt 0:00:36]} 33. Bxd6 $19 {[%emt 0:00:01][%mdl 4096] Endgame KRB-KRN. Black is two pawns up.} Kg7 {[%emt 0:00:37]} 34. Be5+ {[%emt 0:01:35]} Kf8 {[%emt 0:01:35]} 35. Ra7 {[%emt 0:00:23]} Ke8 {[%emt 0:00:34]} 36. Bd6 {[%emt 0:00:33]} Rd8 {[%emt 0:02:26]} 37. Bc5 {[%emt 0:00:08]} Rb8 {[%emt 0:00:33]} 38. Ke4 {[%emt 0:00:29]} Nf6+ {[%emt 0:00:30]} 39. Kd4 {[%emt 0:00:40]} Nd7 {[%emt 0:00:18]} ({Black should play} 39... Rd8+ $19 40. Ke3 Rd5 41. Ra8+ Kd7) 40. Bd6 $17 {[%emt 0:00:29]} Rc8 {[%emt 0:00:13]} 41. Kc4 {[%emt 0:00:23]} f5 {[%emt 0:02:03]} (41... h5 $17) 42. Kd4 {[%emt 0:01:01]} g5 {[%emt 0:00:33]} 43. fxg5 {[%emt 0:01:16]} hxg5 {[%emt 0:00:08]} 44. Ra5 $2 {[%emt 0:00:03][%mdl 8192] [#]} (44. h3 $11 {and White is okay.}) 44... c5+ $1 {[%emt 0:00:31]} 45. Kd5 {[%emt 0:00:13][%cal Od5e6]} f4 {[%emt 0:01:58]} (45... Kf7 $19 {and ...Nb6+ should not be overlooked} 46. Ra7 Rd8 47. Bxc5 Ke8) 46. Ke6 $15 {[%emt 0:02:42]} Nf8+ {[%emt 0:00:49]} 47. Kf5 {[%emt 0:00:22]} c4 {[%emt 0:02:31]} 48. Kxg5 {[%emt 0:01:32]} f3 {[%emt 0:00:42]} (48... Ne6+ $15 49. Kf5 Kd7) 49. Bxf8 $11 {[%emt 0:02:01] The position is equal.} Kxf8 {[%emt 0:00:35] KR-KR. Black is a pawn up.} (49... c3 {is more complex.} 50. Rf5 c2 51. Ba3 c1=Q+) 50. Rf5+ $1 {[%emt 0:00:06]} Ke7 {[%emt 0:01:00] ( -> ...Rf8)} 51. Rxf3 {[%emt 0:00:31]} Rg8+ {[%emt 0:00:12]} 52. Kf4 {[%emt 0:00:36]} Kd6 {[%emt 0:01:24]} 53. h4 {[%emt 0:01:52][%cal Bh2h4,Bh4h5,Bh5h6][%mdl 32]} Kc5 {[%emt 0:00:46]} 54. h5 {[%emt 0:00:10]} Kd4 {[%emt 0:00:55]} 55. h6 {[%emt 0:00:20]} c3 {[%emt 0:00:30]} 56. Rxc3 {[%emt 0:01:42]} Kxc3 {[%emt 0:00:17]} 57. Kf5 {[%emt 0:00:12] Dodges Rg6} Kd4 {[%emt 0:00:36]} 58. Kf6 {[%emt 0:00:45]} Rh8 {[%emt 0:00:42]} 59. Kg7 {[%emt 0:00:05]} Rxh6 {[%emt 0:00:14]} 60. Kxh6 {[%emt 0:00:03] Weighted Error Value: White=0.23 (precise) /Black=0.17 (very precise)   Loses game:     	White=1     	---        Missed win:     	---       	Black=1      Mistake:       	White=5     	Black=4      Inaccurate:     	White=1     	Black=2      OK:         	White=21    	Black=22     Best:        	White=5     	Black=1      Strong:       	White=1     	---        Brilliant:      	---       	Black=1} 1/2-1/2

[Event "8th Montevideo Open 2025"]
[Site "Montevideo"]
[Date "2025.02.04"]
[Round "4.8"]
[White "Lanzilotta, Marcelo"]
[Black "Roselli Mailhe, Bernardo"]
[Result "0-1"]
[Annotator "RC"]
[ECO "C02"]
[WhiteElo "1958"]
[BlackElo "2342"]
[PlyCount "128"]
[EventDate "2025.02.01"]
[EventType "swiss"]
[EventCountry "URU"]
[SourceTitle "playchess.com"]
[Source "ChessBase"]
[SourceQuality "1"]
[TimeControl "5400+30"]

1. e4 {[%emt 0:05:08]} e6 {[%emt 0:00:05]} 2. d4 {[%emt 0:00:13]} d5 {[%emt 0:00:06]} 3. e5 {[%emt 0:00:06]} b6 {[%emt 0:00:06]} 4. c3 {[%emt 0:01:58]} Qd7 {[%emt 0:00:05]} 5. Nf3 {[%emt 0:00:44]} Ne7 {[%emt 0:00:07]} 6. b3 {[%emt 0:01:00]} c5 {[%emt 0:03:45]} 7. Na3 {[%emt 0:01:46]} Nec6 {[%emt 0:13:54]} 8. Nc2 {[%emt 0:08:27]} Be7 {[%emt 0:03:52]} 9. Bg5 {[%emt 0:05:14]} Bxg5 {[%emt 0:04:56]} 10. Nxg5 {[%emt 0:00:02]} h6 {[%emt 0:00:07]} 11. Nf3 {[%emt 0:00:31]} cxd4 {[%emt 0:00:10]} 12. Ncxd4 {[%emt 0:02:40]} Nxd4 {[%emt 0:04:20]} 13. Qxd4 {[%emt 0:09:45]} O-O {[%emt 0:00:21]} 14. Bd3 {[%emt 0:01:08]} Ba6 {[%emt 0:00:14]} 15. O-O {[%emt 0:03:01]} Nc6 {[%emt 0:06:34]} 16. Qe3 {[%emt 0:01:05]} Bxd3 {[%emt 0:00:06]} 17. Qxd3 {[%emt 0:00:03]} Rfd8 {[%emt 0:00:11]} 18. Rfe1 {[%emt 0:07:22]} Rac8 {[%emt 0:11:16]} 19. Nd4 {[%emt 0:01:20]} Nxd4 {[%emt 0:04:47]} 20. Qxd4 {[%emt 0:03:36]} Qe7 {[%emt 0:00:58]} 21. h4 {[%emt 0:02:03]} Qc5 {[%emt 0:06:48]} 22. Rac1 {[%emt 0:02:42]} Rd7 {[%emt 0:04:21]} 23. Red1 {[%emt 0:10:00]} Qxd4 {[%emt 0:03:16]} 24. Rxd4 {[%emt 0:00:02]} Rdc7 {[%emt 0:00:17]} 25. Rd3 {[%emt 0:02:34]} b5 {[%emt 0:00:10]} 26. a3 {[%emt 0:09:57]} a5 {[%emt 0:02:30]} 27. b4 {[%emt 0:01:50]} a4 {[%emt 0:04:33]} 28. f4 {[%emt 0:02:16]} Rc4 {[%emt 0:08:18]} 29. g3 {[%emt 0:00:22]} g5 {[%emt 0:08:10]} 30. hxg5 {[%emt 0:02:20]} hxg5 {[%emt 0:00:13]} 31. Rf3 {[%emt 0:00:49]} d4 {[%emt 0:04:31]} 32. Kf2 {[%emt 0:02:15]} Kg7 {[%emt 0:02:29]} 33. Ke2 {[%emt 0:01:27]} dxc3 {[%emt 0:00:51]} 34. Rc2 {[%emt 0:00:21]} Kg6 {[%emt 0:00:34]} 35. fxg5 {[%emt 0:00:46]} Re4+ {[%emt 0:00:45]} 36. Kf2 {[%emt 0:00:43]} Rxe5 {[%emt 0:00:28]} 37. Rfxc3 {[%emt 0:02:21]} Rxc3 {[%emt 0:00:06]} 38. Rxc3 {[%emt 0:00:06]} Kxg5 {[%emt 0:00:07]} 39. Rc5 {[%emt 0:05:20]} Kf5 {[%emt 0:02:36]} 40. Rc7 {[%emt 0:00:46]} f6 {[%emt 0:00:07]} 41. Kf3 {[%emt 0:00:05]} Rd5 {[%emt 0:00:10]} 42. Ke3 {[%emt 0:00:54]} Kg4 {[%emt 0:00:37]} 43. Rc6 {[%emt 0:01:44]} Re5+ {[%emt 0:01:18]} 44. Kf2 {[%emt 0:00:01]} f5 {[%emt 0:00:29]} 45. Rc8 {[%emt 0:01:20]} f4 {[%emt 0:00:14]} 46. gxf4 {[%emt 0:01:28]} Kxf4 {[%emt 0:00:05]} 47. Rf8+ {[%emt 0:01:09]} Ke4 {[%emt 0:00:40]} 48. Ke2 {[%emt 0:00:04]} Kd4+ {[%emt 0:00:58]} 49. Kd2 {[%emt 0:00:02]} Kc4 {[%emt 0:00:11]} 50. Rf3 {[%emt 0:00:55]} Rd5+ {[%emt 0:01:21]} 51. Kc2 {[%emt 0:00:01]} e5 {[%emt 0:00:56]} 52. Rf8 {[%emt 0:01:30]} e4 {[%emt 0:00:49]} 53. Re8 {[%emt 0:00:04]} Kd4 {[%emt 0:00:11]} 54. Kd2 {[%emt 0:00:07]} Rd7 {[%emt 0:01:10]} 55. Re6 {[%emt 0:00:44]} Rh7 {[%emt 0:00:46]} 56. Rd6+ {[%emt 0:00:32]} Kc4 {[%emt 0:00:09]} 57. Kc2 {[%emt 0:03:01]} Rh2+ {[%emt 0:00:15]} 58. Kc1 {[%emt 0:00:36]} e3 {[%emt 0:00:21]} 59. Re6 {[%emt 0:00:24]} Kd3 {[%emt 0:00:06]} 60. Rd6+ {[%emt 0:00:02]} Kc3 {[%emt 0:00:07]} 61. Rc6+ {[%emt 0:00:01]} Kb3 {[%emt 0:00:23]} 62. Kd1 {[%emt 0:00:15]} Kxa3 {[%emt 0:00:42]} 63. Rc3+ {[%emt 0:00:02]} Kxb4 {[%emt 0:00:08]} 64. Rxe3 {[%emt 0:00:07]} a3 {[%emt 0:00:17]} 0-1

[Event "8th Montevideo Open 2025"]
[Site "Montevideo"]
[Date "2025.02.04"]
[Round "4.9"]
[White "Varela, Mateo"]
[Black "Milat, Marcel"]
[Result "0-1"]
[Annotator "TA"]
[ECO "B03"]
[WhiteElo "1955"]
[BlackElo "2190"]
[PlyCount "50"]
[EventDate "2025.02.01"]
[EventType "swiss"]
[EventCountry "URU"]
[SourceTitle "playchess.com"]
[Source "ChessBase"]
[SourceQuality "1"]
[TimeControl "5400+30"]

{[%evp 18,50,114,101,94,108,157,-47,-30,-148,-142,-139,-136,-203,-127,-135,-127,-138,-125,-170,-156,-306,-313,-274,-247,-260,-318,-286,-295,-425,-366,-541,-521,-1046,-1010]} 1. e4 {[%emt 0:07:20][%cal Be2e4,Be4e5][%mdl 32]} Nf6 {[%emt 0:01:06]} 2. e5 {[%emt 0:00:03]} Nd5 {[%emt 0:00:05]} 3. c4 {[%emt 0:00:06]} Nb6 {[%emt 0:00:08]} 4. d4 {[%emt 0:00:10]} d6 {[%emt 0:00:06]} 5. f4 {[%emt 0:00:02]} dxe5 {[%emt 0:00:37]} 6. fxe5 {[%emt 0:00:21]} e6 {[%emt 0:00:06]} 7. Nc3 {[%emt 0:04:48]} c5 {[%emt 0:00:05]} 8. d5 {[%emt 0:05:23]} exd5 {[%emt 0:00:08]} 9. cxd5 {[%emt 0:04:05][%cal Bc4d5,Bd5d6][%mdl 32]} c4 {[%emt 0:00:14] [#]} 10. d6 $1 {[%emt 0:06:02]} Nc6 {[%emt 0:00:09] B03: Alekhine's Defence: Four Pawns Attack.} 11. Bf4 {[%emt 0:03:54] Hoping for Nb5.} g5 {[%emt 0:01:04] [#]} (11... f6 $142) 12. Bg3 $2 {[%emt 0:03:46]} (12. Ne4 $1 $16 Bg7 13. Bxg5) 12... Bg7 $1 $15 {[%emt 0:00:09][%cal Oe8g8] Black is slightly better.} 13. Nd5 $146 {[%emt 1:01:00]} (13. h3 $11 {remains equal.}) (13. Qd2 Nxe5 14. O-O-O O-O 15. h4 Bf5 16. hxg5 Rc8 17. Bxe5 Bxe5 18. Nf3 Bg7 19. Qf4 {½-½ Schink,B (2046)-Dreke,F (2037) Berlin Lichtenberger op 7th 2008 (6)}) 13... Nxd5 {[%emt 0:12:39]} 14. Qxd5 {[%emt 0:00:00][%cal Og1f3]} Be6 {[%emt 0:00:21]} 15. Qc5 {[%emt 0:00:00]} (15. d7+ $17 Qxd7 (15... Bxd7 16. Bxc4 O-O 17. Nf3 $17) 16. Qxd7+ Bxd7 17. Nf3) 15... Qb6 {[%emt 1:21:03]} 16. Qxb6 {[%emt 0:00:00]} axb6 {[%emt 0:00:00]} 17. Nf3 {[%emt 0:00:00]} h6 {[%emt 0:00:00]} 18. h3 {[%emt 0:00:00]} Ra5 $36 {[%emt 0:00:00][%cal Rc6e5][%mdl 2048] Keeping White busy.} 19. O-O-O {[%emt 0:00:00]} (19. Be2 $17) 19... Rxa2 $19 {[%emt 0:00:00]} (19... Nxe5 20. Nd4 $17) 20. Kb1 {[%emt 0:03:30]} Ra5 {[%emt 0:00:00][%cal Ob6b5]} 21. Nd4 {[%emt 0:00:00]} Nxd4 {[%emt 0:00:00]} (21... Nxe5 22. Nxe6 fxe6 23. Bxe5 Bxe5 24. Bxc4 $11) 22. Rxd4 {[%emt 0:00:00]} b5 {[%emt 0:00:00]} (22... Bxe5 23. Bxe5 Bf5+ (23... Rxe5 24. Bxc4 Kd7 25. Rf1 $17) 24. Kc1 Rxe5 25. Bxc4 $17) 23. Be1 {[%emt 0:00:00]} (23. Kc2 {keeps fighting.} f6 24. Be2) 23... Ra6 {[%emt 0:00:00]} (23... Bxe5 24. d7+ Ke7 (24... Bxd7 25. Rxd7 Kxd7 26. Bxa5 $16) 25. Bb4+ Kf6 26. Bxa5 $18 (26. d8=R Rxd8 27. Rxd8 Ra4 $14) (26. d8=B+ Kg6 $14)) 24. Bg3 {[%emt 0:00:00]} (24. g4 $142 Bxe5 25. Re4 Bxd6 26. h4) 24... Kd7 {[%emt 0:00:00]} 25. b3 {[%emt 0:00:36]} Rha8 {[%emt 0:00:00] Weighted Error Value: White=1.00/Black=0.14 (very precise)   Mistake:       	White=6     	Black=1      Inaccurate:     	White=2     	Black=1      OK:         	White=4     	Black=6      Best:        	---       	Black=1      Strong:       	---       	Black=1} ({Stronger than} 25... cxb3 26. Bxb5+ Rc6 27. Bxc6+ bxc6 28. Ra4 $16) 0-1

[Event "8th Montevideo Open 2025"]
[Site "Montevideo"]
[Date "2025.02.03"]
[Round "4.10"]
[White "Mussanti, Diego"]
[Black "Escofet, Jaime"]
[Result "*"]
[Annotator "RC"]
[ECO "B12"]
[WhiteElo "2173"]
[BlackElo "1951"]
[PlyCount "79"]
[EventDate "2025.02.01"]
[EventType "swiss"]
[EventCountry "URU"]
[SourceTitle "playchess.com"]
[Source "ChessBase"]
[SourceQuality "1"]
[TimeControl "5400+30"]

1. e4 {[%emt 0:00:03]} c6 {[%emt 0:03:39]} 2. d4 {[%emt 0:01:41]} d5 {[%emt 0:00:39]} 3. e5 {[%emt 0:00:12]} Bf5 {[%emt 0:00:37]} 4. c4 {[%emt 0:00:09]} e6 {[%emt 0:00:35]} 5. Nc3 {[%emt 0:00:19]} dxc4 {[%emt 0:04:54]} 6. Bxc4 {[%emt 0:02:04]} Nd7 {[%emt 0:00:34]} 7. Nge2 {[%emt 0:00:22]} Nb6 {[%emt 0:00:17]} 8. Bb3 {[%emt 0:00:12]} Ne7 {[%emt 0:02:58]} 9. Ng3 {[%emt 1:29:58]} Bg6 {[%emt 0:00:12]} 10. O-O {[%emt 0:00:12]} Nf5 {[%emt 0:00:18]} 11. Nxf5 {[%emt 0:07:19]} Bxf5 {[%emt 0:00:19]} 12. g4 {[%emt 0:01:59]} Bg6 {[%emt 0:00:06]} 13. f4 {[%emt 0:00:08]} Qh4 {[%emt 0:05:38]} 14. Qe2 {[%emt 0:19:35]} O-O-O {[%emt 0:03:31]} 15. Be3 {[%emt 0:02:43]} Bb4 {[%emt 0:11:34]} 16. f5 {[%emt 0:16:39]} exf5 {[%emt 0:00:30]} 17. gxf5 {[%emt 0:00:09]} Bh5 {[%emt 0:00:08]} 18. Qf2 {[%emt 0:00:09]} Qxf2+ {[%emt 1:03:01]} 19. Rxf2 {[%emt 0:00:50]} Bxc3 {[%emt 0:13:59]} 20. bxc3 {[%emt 0:00:08]} Nd5 {[%emt 0:00:05]} 21. Bd2 {[%emt 0:08:32]} b5 {[%emt 0:42:53]} 22. a4 {[%emt 0:01:33]} a6 {[%emt 0:03:46]} 23. axb5 {[%emt 0:00:38]} axb5 {[%emt 0:00:08]} 24. Bxd5 {[%emt 0:02:28]} cxd5 {[%emt 0:00:27]} 25. Ra5 {[%emt 0:00:47]} Kc7 {[%emt 0:06:03]} 26. Rxb5 {[%emt 0:00:18]} Ra8 {[%emt 0:04:29]} 27. Bf4 {[%emt 0:03:40]} Ra1+ {[%emt 0:01:56]} 28. Kg2 {[%emt 0:31:09]} Rha8 {[%emt 0:00:32]} 29. e6+ {[%emt 0:00:00]} Kd8 {[%emt 0:00:25]} 30. Rxd5+ {[%emt 0:00:00]} Ke8 {[%emt 0:00:06]} 31. f6 {[%emt 0:00:00]} Bg6 {[%emt 0:00:00]} 32. fxg7 {[%emt 0:00:00]} Ke7 {[%emt 0:00:00]} 33. Bg5+ {[%emt 0:00:00]} Kxe6 {[%emt 0:00:00]} 34. Rd8 {[%emt 0:00:00]} Be4+ {[%emt 0:00:00]} 35. Kh3 {[%emt 0:00:00]} Rxd8 {[%emt 0:00:00]} 36. Bxd8 {[%emt 0:00:00]} Rg1 {[%emt 0:03:00]} 37. Rf6+ {[%emt 0:04:30]} Kd5 {[%emt 0:00:00]} 38. Rxf7 {[%emt 0:00:00]} Kc4 {[%emt 0:00:00]} 39. Bh4 {[%emt 0:00:00]} Rg6 {[%emt 0:00:00]} 40. Rc7+ {[%emt 0:00:00]} *

[Event "8th Montevideo Open 2025"]
[Site "Montevideo"]
[Date "2025.02.04"]
[Round "4.11"]
[White "Esteve, Federico"]
[Black "Dominguez, Facundo"]
[Result "0-1"]
[Annotator "TA"]
[ECO "E21"]
[WhiteElo "1946"]
[BlackElo "2159"]
[PlyCount "38"]
[EventDate "2025.02.01"]
[EventType "swiss"]
[EventCountry "URU"]
[SourceTitle "playchess.com"]
[Source "ChessBase"]
[SourceQuality "1"]
[TimeControl "5400+30"]

{[%evp 11,38,0,0,0,0,0,10,13,9,-13,-9,-51,-37,-51,-52,-37,-35,-32,3,-73,-78,-268,-175,-333,-328,-487,-467,-629,-583]} 1. d4 {[%emt 0:01:10]} Nf6 {[%emt 0:00:08]} 2. c4 {[%emt 0:00:33]} e6 {[%emt 0:02:33]} 3. Nc3 {[%emt 0:00:07]} Bb4 {[%emt 0:00:35]} 4. e3 {[%emt 0:00:06]} O-O {[%emt 0:00:29]} 5. Bd2 {[%emt 0:00:10]} b6 {[%emt 0:01:25]} 6. Nf3 {[%emt 0:00:09]} Bb7 {[%emt 0:00:34]} 7. Rc1 {[%emt 0:00:35]} d6 {[%emt 0:03:41][%cal Bd7d6,Bd6e5,Be5e4][%mdl 32]} 8. Bd3 {[%emt 0:00:13]} Nbd7 {[%emt 0:01:43]} 9. O-O {[%emt 0:23:00] The position is equal.} e5 {[%emt 0:01:57]} 10. dxe5 {[%emt 0:04:48]} dxe5 {[%emt 0:03:23] [#] And now ...Bxc3 would win.} 11. Be2 {[%emt 0:00:10]} Re8 {[%emt 0:02:46]} 12. Qc2 {[%emt 1:05:29]} e4 {[%emt 0:06:32]} 13. Nd4 {[%emt 0:00:00][%cal Oc3d5]} Bf8 {[%emt 0:08:43]} 14. Rcd1 {[%emt 0:00:00]} c5 {[%emt 0:02:44]} 15. Nb3 {[%emt 0:00:00]} (15. Nf5 $11 {keeps the balance.}) 15... Ne5 $17 {[%emt 0:08:38][%cal Oe5f3] White must now prevent ...Nf3+!} 16. h3 $2 {[%emt 0:00:00] This costs White the game.} (16. Bc1 $17 Qc7 17. Nd5) 16... Qc8 {[%emt 0:06:57][%cal Oe5f3] Hoping for ...Nf3+!} 17. Bc1 $2 {[%emt 0:00:00]} (17. Rfe1 {was the only defense.}) 17... Nf3+ $1 $19 {[%emt 0:02:21]} 18. Kh1 {[%emt 0:00:00] [#]} (18. Bxf3 $142 exf3 19. Nd5) 18... Re5 $1 {[%emt 0:00:28][%cal Oe5h5] ( -> ...Rh5!)} 19. Nd5 {[%emt 0:00:00]} (19. Rg1 Rh5) 19... Bxd5 {[%emt 0:02:19] Weighted Error Value: White=0.76/Black=0.11 (very precise) .  Loses game:     	White=1     	---        Mistake:       	White=3     	---        Inaccurate:     	White=2     	Black=2      OK:         	White=4     	Black=4      Best:        	---       	Black=2      Strong:       	---       	Black=1} 0-1